bitfinex/quotes_ETHUSD_20250721
["timestamp","ask_amount","ask_price","bid_price","bid_amount"]
[1753119406798,5.222,3767.9,3767.8,3.23366868]
[1753119407598,5.222,3767.9,3767.8,3.23466868]
[1753119407898,5.216,3767.9,3767.8,3.23466868]
[1753119408106,0.7,3767.9,3767.8,3.82355129]
[1753119408397,5.211,3767.9,3767.8,4.59535129]
[1753119409085,0.7,3767.9,3767.8,4.59535129]
[1753119410289,0.73317497,3767.9,3767.8,4.00646868]
[1753119410596,0.73317497,3767.9,3767.8,3.23466868]
[1753119410799,0.73317497,3767.9,3767.8,2.78706868]
[1753119411772,5.197,3767.9,3767.8,3.24716868]
[1753119413887,19.697,3767.9,3767.8,3.24716868]
[1753119414081,19.697,3767.9,3767.8,2.78706868]
[1753119415711,15.2,3767.9,3767.8,3.24716868]
[1753119415915,0.7,3767.9,3767.8,3.83730064]
[1753119416206,4.48,3768.3,3768.2,2.65378695]
[1753119416420,0.03316705,3768.8,3768.7,2.65343487]
[1753119416621,0.58316617,3768.9,3768.8,2.65336446]
[1753119416924,17.5,3768.9,3768.8,2.65336446]
[1753119417087,0.20033793,3769.1,3769.0,2.65322366]
[1753119417281,4.476,3769.1,3769.0,2.65322366]
[1753119417516,3.0,3769.1,3769.0,2.65322366]
[1753119417818,14.5,3769.1,3769.0,3.11332366]
[1753119418016,4.475,3769.1,3769.0,3.11332366]
[1753119418593,18.975,3769.1,3769.0,3.11332366]
[1753119419010,18.975,3769.1,3769.0,2.65322366]
[1753119419613,14.69657353,3769.1,3769.0,3.11332366]
[1753119420035,3.7892,3769.7,3768.9,0.132]
[1753119420336,3.0,3769.5,3769.4,2.65291706]
[1753119420533,17.5,3769.5,3769.4,2.65291706]
[1753119421333,21.962,3769.5,3769.4,2.65291706]
[1753119421542,14.5,3769.5,3769.4,2.65291706]
[1753119421716,6.366,3769.8,3769.7,2.65273098]
[1753119421913,3.0,3769.7,3769.6,2.65278456]
[1753119422232,17.53315913,3769.7,3769.5,2.65286746]
[1753119422405,4.459,3769.6,3769.5,2.65286746]
[1753119422815,4.459,3769.6,3769.3,2.78500719]
[1753119422816,6.366,3769.8,3769.6,2.65280135]
[1753119423133,10.4619512,3770.9,3769.3,2.65300264]
[1753119423134,0.9094,3770.4,3769.7,2.65273098]
[1753119423310,3.0,3770.2,3770.1,2.65237919]
[1753119423510,3.55,3770.2,3770.1,2.65237919]
[1753119423711,3.55,3770.2,3770.0,2.65249696]
[1753119423940,0.55,3770.2,3770.1,2.65244953]
[1753119424240,3.0,3770.1,3769.6,0.7679]
[1753119424444,0.55,3770.5,3770.2,2.65230927]
[1753119425057,3.0,3770.3,3770.2,2.65230927]
[1753119425222,3.0,3770.3,3770.1,2.65242656]
[1753119425541,4.48515473,3770.2,3770.1,2.65242656]
[1753119425948,0.03315473,3770.2,3770.1,2.65242656]
[1753119426237,0.19583755,3770.3,3770.2,2.65237918]
[1753119426460,0.03315298,3770.4,3770.2,2.78437918]
[1753119426622,0.03315298,3770.4,3770.3,2.65230883]
[1753119426820,4.444,3770.4,3770.3,2.65230883]
[1753119427123,7.444,3770.4,3770.3,2.65230883]
[1753119427754,3.0,3770.4,3770.3,2.65230883]
[1753119428059,7.441,3770.4,3770.3,2.65230883]
[1753119428736,3.0,3770.4,3770.3,2.65230883]
[1753119428932,0.03514682,3771.1,3770.3,0.54366997]
[1753119429146,0.03514682,3771.1,3771.0,2.65181649]
[1753119429347,4.47214682,3771.1,3771.0,2.78381649]
[1753119429654,7.47214682,3771.1,3771.0,0.132]
[1753119429963,7.439,3771.1,3771.0,0.132]
[1753119430181,4.439,3771.1,3771.0,0.132]
[1753119430666,4.439,3771.1,3771.0,2.78381649]
[1753119430829,4.439,3771.1,3771.0,3.24391649]
[1753119431165,7.432,3771.1,3771.0,3.24391649]
[1753119431776,7.429,3771.1,3771.0,3.24391649]
[1753119432077,0.002,3771.1,3771.0,3.24391649]
[1753119432640,0.002,3771.1,3771.0,0.132]
[1753119432841,0.03514682,3771.1,3770.2,0.4601]
[1753119433148,4.45914682,3771.1,3770.9,2.65184641]
[1753119433487,5.05920439,3771.1,3770.8,2.78393434]
[1753119433785,5.05920439,3771.1,3770.8,0.132]
[1753119434000,0.03514682,3771.1,3770.8,0.5921]
[1753119434183,0.002,3771.1,3771.0,2.65181649]
[1753119434383,0.002,3771.1,3770.1,5.2342]
[1753119434384,4.422,3771.1,3770.1,0.8102]
[1753119434690,2.65190697,3770.9,3770.5,0.132]
[1753119434881,7.45314946,3770.8,3770.5,0.132]
[1753119435053,8.69588211,3770.8,3770.5,0.132]
[1753119436168,0.03315034,3770.7,3770.5,0.132]
[1753119439383,0.55,3770.1,3769.3,0.4604]
[1753119439581,0.55,3769.9,3769.5,0.132]
[1753119439896,4.44215825,3769.8,3769.5,0.132]
[1753119440116,0.03315825,3769.8,3769.5,0.132]
[1753119440400,4.408,3769.7,3769.5,2.78486566]
[1753119440587,0.03316001,3769.6,3769.5,3.24526566]
[1753119440987,0.03316001,3769.6,3769.5,3.24527173]
[1753119440988,4.404,3769.6,3769.5,3.24527173]
[1753119441300,4.404,3769.6,3769.5,0.132]
[1753119441459,4.404,3769.6,3769.5,2.78487173]
[1753119441661,0.831,3771.6,3769.6,0.7917]
[1753119441878,0.13402945,3772.1,3771.0,0.132]
[1753119441879,0.03303272,3771.5,3771.0,0.132]
[1753119442093,0.03303272,3771.7,3771.0,0.132]
[1753119442302,30.0,3771.0,3768.4,2.787]
[1753119442485,2.65216814,3770.5,3767.8,0.001]
[1753119442687,10.77918508,3769.1,3767.8,0.001]
[1753119442869,3.0,3768.9,3767.8,0.001]
[1753119443072,0.03316705,3768.8,3767.8,0.001]
[1753119443375,0.79996705,3768.8,3767.8,2.65501231]
[1753119443574,3.0,3768.6,3767.8,0.001]
[1753119443893,0.03316969,3768.5,3767.9,2.65394027]
[1753119444060,0.03316969,3768.5,3767.8,0.001]
[1753119444263,3.0,3768.3,3767.8,2.65501039]
[1753119444491,0.03317233,3768.2,3768.0,2.65386277]
[1753119444800,0.03317233,3768.2,3768.1,2.65385738]
[1753119445096,0.03316793,3768.7,3767.9,0.4604]
[1753119445301,0.03316793,3768.7,3768.6,2.65350528]
[1753119445498,0.03316441,3769.1,3768.8,2.65334763]
[1753119445708,3.0,3768.9,3768.6,0.4604]
[1753119446010,0.03316705,3768.8,3768.6,3.11383763]
[1753119446222,0.03316705,3768.8,3768.7,2.65343487]
[1753119446703,3.0,3768.8,3768.7,2.65343487]
[1753119446862,7.464,3768.8,3768.7,2.65343487]
[1753119447064,7.463,3768.8,3768.7,2.65343487]
[1753119447301,7.463,3768.8,3768.7,3.11383487]
[1753119447502,0.20115247,3769.2,3769.0,2.65320913]
[1753119447661,3.0,3769.1,3769.0,2.65320913]
[1753119447861,7.46,3769.1,3768.9,2.65328061]
[1753119448366,7.46,3769.1,3768.8,3.11375623]
[1753119448565,4.49316529,3769.0,3768.9,2.65329406]
[1753119448766,4.457,3769.0,3768.9,2.65329406]
[1753119449509,3.0,3769.1,3769.0,2.65322366]
[1753119449671,7.454,3769.1,3769.0,3.11362366]
[1753119451398,3.0,3769.1,3769.0,3.11362366]
[1753119451592,7.448,3769.1,3769.0,3.11362366]
[1753119452018,3.0,3769.1,3769.0,3.11362366]
[1753119452218,7.448,3769.1,3769.0,3.11362366]
[1753119452585,7.448,3769.1,3769.0,3.24562366]
[1753119454029,3.0,3769.1,3769.0,3.24562366]
[1753119454316,7.438,3769.1,3769.0,3.24562366]
[1753119454536,3.0,3769.1,3769.0,3.24562366]
[1753119455385,7.435,3769.1,3769.0,3.24562366]
[1753119455589,3.0,3769.1,3769.0,3.24562366]
[1753119455812,0.20174091,3769.2,3769.1,2.65315327]
[1753119456117,0.03316001,3769.6,3769.5,2.65287173]
[1753119456319,7.46316001,3769.6,3769.5,2.65287173]
[1753119456616,7.43,3769.6,3769.5,2.65287173]
[1753119457391,3.0,3769.6,3769.5,2.65287173]
[1753119457723,7.425,3769.6,3769.5,3.11327173]
[1753119457927,3.0,3769.6,3769.5,3.24527173]
[1753119458092,0.8864,3770.1,3769.5,3.24527173]
[1753119458093,0.03315561,3770.1,3770.0,2.65251989]
[1753119458294,0.03315298,3770.4,3770.3,2.65230883]
[1753119458604,0.03315298,3770.4,3768.1,0.8302]
[1753119458605,0.55,3770.1,3768.1,0.8302]
[1753119458814,0.55,3769.7,3769.0,2.65321459]
[1753119458989,0.55,3769.7,3769.1,0.132]
[1753119458990,3.0,3769.5,3769.1,0.132]
[1753119459191,0.03316177,3769.4,3769.3,2.65295609]
[1753119459502,3.0,3769.3,3769.2,2.65307694]
[1753119459710,0.03316265,3769.3,3769.2,2.65307694]
[1753119459922,0.03316265,3769.3,3769.1,2.78514555]
[1753119460230,3.03316265,3769.3,3769.1,0.132]
[1753119460385,3.77887892,3769.3,3769.1,0.132]
[1753119460591,4.54007892,3769.3,3768.7,2.65339123]
[1753119460821,4.54007892,3769.3,3768.7,2.78539123]
[1753119461021,4.54007892,3769.3,3768.9,2.65328604]
[1753119461229,0.55,3769.2,3768.9,2.65328604]
[1753119461436,0.03316441,3769.1,3768.8,2.65334655]
[1753119461612,4.417,3769.0,3768.9,2.6532732]
[1753119462328,4.417,3769.0,3768.8,2.65334844]
[1753119462494,0.03316617,3768.9,3768.8,2.65336446]
[1753119464037,0.03316353,3769.2,3769.1,2.65315327]
[1753119464206,3.0,3769.1,3769.0,2.65320121]
[1753119464391,3.03316441,3769.1,3769.0,2.65320121]
[1753119464588,3.03316441,3769.1,3769.0,2.78520121]
[1753119464989,3.03316441,3769.1,3769.0,0.132]
[1753119465191,3.03316441,3769.1,3768.9,0.132]
[1753119465635,3.03316441,3769.1,3769.0,2.65322366]
[1753119466020,4.43516441,3769.1,3769.0,3.11362366]
[1753119466194,4.402,3769.1,3769.0,3.24562366]
[1753119466518,4.402,3769.1,3769.0,2.78522366]
[1753119467040,4.4,3769.1,3769.0,2.78522366]
[1753119468093,0.03316177,3769.4,3769.3,2.65301249]
[1753119468446,7.396,3769.4,3769.3,2.65301249]
[1753119468598,7.394,3769.4,3769.3,2.65301249]
[1753119468948,7.394,3769.4,3769.3,3.21481249]
[1753119469325,7.392,3769.4,3769.3,3.21481249]
[1753119469693,7.392,3769.4,3769.3,0.132]
[1753119469894,8.6812,3769.4,3769.3,0.132]
[1753119470094,8.6812,3769.4,3768.9,0.132]
[1753119470095,0.55,3769.3,3768.9,0.132]
[1753119470319,0.03316353,3769.2,3768.9,0.132]
[1753119470538,3.55,3768.9,3768.4,2.65363904]
[1753119470701,4.42316705,3768.8,3768.5,0.132]
[1753119470899,0.03316705,3768.8,3768.7,2.65343487]
[1753119471129,4.39,3768.8,3768.6,3.08328371]
[1753119471330,0.03316793,3768.7,3768.6,2.65348371]
[1753119471533,4.388,3768.7,3768.6,3.08328371]
[1753119471745,4.387,3768.7,3768.6,2.65348371]
[1753119472046,4.387,3768.7,3768.6,2.65350528]
[1753119472208,0.03316441,3769.1,3768.7,2.65343487]
[1753119472413,0.03316265,3769.3,3769.2,2.65308288]
[1753119472644,7.41816265,3769.3,3769.1,2.65314356]
[1753119472842,7.385,3769.3,3769.2,0.4298]
[1753119473045,7.385,3769.3,3769.0,0.132]
[1753119473046,3.0,3769.2,3769.0,0.132]
[1753119473203,0.71516441,3769.1,3768.3,0.4298]
[1753119473404,0.55,3768.9,3768.5,0.132]
[1753119473627,0.03316705,3768.8,3768.6,2.65345605]
[1753119473821,4.383,3768.7,3768.6,2.65345605]
[1753119474132,4.383,3768.7,3768.6,2.65350528]
[1753119474336,0.03316353,3769.2,3768.6,0.4298]
[1753119474536,0.03316353,3769.2,3768.9,2.78524912]
[1753119474726,3.0,3769.0,3768.9,2.78524912]
[1753119474905,3.03316529,3769.0,3768.9,2.78524912]
[1753119476104,0.03316529,3769.0,3768.9,3.21504912]
[1753119476314,7.38,3769.5,3769.4,2.65294211]
[1753119476504,7.38,3769.5,3769.4,3.21474211]
[1753119477142,7.38,3769.5,3769.4,0.132]
[1753119477343,7.38,3769.5,3769.4,2.78494211]
[1753119477517,3.0,3769.5,3769.4,2.78494211]
[1753119477719,7.379,3769.5,3769.4,2.78494211]
[1753119477916,3.0,3769.5,3769.4,2.78494211]
[1753119478119,7.376,3769.5,3769.4,2.78494211]
[1753119478712,3.0,3769.5,3769.4,3.21474211]
[1753119479044,4.374,3769.5,3769.4,3.21473718]
[1753119480344,0.03315649,3770.0,3769.9,2.65259025]
[1753119480506,0.03515298,3770.4,3770.2,2.65235131]
[1753119480706,0.03515298,3770.4,3769.5,0.00675958]
[1753119480707,0.03515298,3770.4,3770.3,2.65230883]
[1753119480944,3.0,3770.3,3770.1,0.132]
[1753119481149,4.40015473,3770.2,3770.1,2.78444953]
[1753119481462,3.03315473,3770.2,3770.1,3.21424953]
[1753119481610,7.366,3770.2,3770.1,3.21424953]
[1753119482542,0.002,3770.4,3770.3,2.65230883]
[1753119482744,4.363,3770.4,3770.3,2.65230883]
[1753119483047,0.002,3770.4,3770.3,3.21410883]
[1753119483229,4.363,3770.4,3770.3,3.21410883]
[1753119484210,0.002,3770.4,3770.3,3.21410883]
[1753119484634,0.002,3770.4,3770.3,0.132]
[1753119484834,0.002,3770.4,3769.6,0.4298]
[1753119484835,3.0,3770.2,3770.1,0.132]
[1753119485046,0.03315473,3770.2,3770.1,0.132]
[1753119485212,4.39215473,3770.2,3770.1,0.132]
[1753119485933,7.39215473,3770.2,3770.1,0.132]
[1753119486136,7.359,3770.2,3770.1,0.132]
[1753119487417,3.0,3770.2,3770.1,0.132]
[1753119487664,4.351,3770.2,3770.1,3.21424953]
[1753119487873,0.002,3770.4,3770.3,2.65230883]
[1753119488043,7.353,3770.4,3770.3,2.65230883]
[1753119488237,7.353,3770.4,3770.3,0.5618]
[1753119488753,7.353,3770.4,3770.3,0.132]
[1753119488952,7.353,3770.4,3769.7,0.4298]
[1753119488953,8.92297696,3770.4,3769.9,2.65256756]
[1753119489161,0.03315386,3770.3,3770.0,0.132]
[1753119489849,4.347,3770.2,3770.0,0.132]
[1753119490054,4.347,3770.2,3770.1,2.6524182]
[1753119490566,4.347,3770.2,3770.0,2.78449776]
[1753119490858,4.347,3770.2,3770.1,3.08224953]
[1753119491065,4.347,3770.2,3770.0,2.78449363]
[1753119491238,4.347,3770.2,3770.1,3.08224953]
[1753119491670,3.552,3770.4,3770.1,3.08224953]
[1753119491873,4.342,3770.3,3770.1,0.4298]
[1753119492077,4.342,3770.3,3770.0,2.78449736]
[1753119492278,4.342,3770.3,3770.1,2.6524466]
[1753119493076,4.37515386,3770.3,3770.1,2.6524466]
[1753119493282,3.002,3770.4,3770.2,3.08217918]
[1753119493483,4.341,3770.3,3770.2,3.08217918]
[1753119494295,3.002,3770.4,3770.3,2.65230883]
[1753119494574,7.338,3770.4,3770.3,3.08210883]
[1753119494777,7.336,3770.4,3770.3,3.08210883]
[1753119496844,3.002,3770.4,3770.3,3.08210883]
[1753119497042,4.328,3770.4,3770.3,3.08210883]
[1753119497481,6.9802748,3770.4,3770.2,0.132]
[1753119497660,0.46926898,3770.3,3769.9,2.65258229]
[1753119497856,4.3168,3770.1,3769.6,0.132]
[1753119498185,4.3168,3770.1,3769.1,0.804]
[1753119498186,3.0,3769.7,3769.2,2.653062]
[1753119498387,4.35816001,3769.6,3769.4,0.132]
[1753119498988,14.5,3769.5,3769.4,0.132]
[1753119500171,15.05,3769.5,3769.4,0.132]
[1753119500372,14.5,3769.5,3769.1,0.132]
[1753119500647,4.35316177,3769.4,3769.1,2.78513002]
[1753119500847,4.35316177,3769.4,3769.1,0.5892]
[1753119501087,4.35316177,3769.4,3769.2,2.6530403]
[1753119501257,4.35316177,3769.4,3769.1,0.5892]
[1753119501462,4.35316177,3769.4,3769.1,0.132]
[1753119501877,0.55,3769.2,3769.1,0.132]
[1753119502178,0.55,3769.2,3768.4,2.7856014]
[1753119502179,3.20323024,3769.0,3768.4,2.7856014]
[1753119502359,0.55,3768.8,3768.4,2.7856014]
[1753119502563,4.34916793,3768.7,3768.4,2.7856014]
[1753119502888,0.03316705,3768.8,3768.6,2.65450528]
[1753119503085,4.317,3768.7,3768.6,0.001]
[1753119503768,4.317,3768.7,3768.6,2.65450528]
[1753119503963,14.5,3768.9,3768.8,2.65336446]
[1753119504181,18.813,3768.9,3768.8,3.11056446]
[1753119504494,18.813,3768.9,3768.8,3.24256446]
[1753119504656,0.55,3769.5,3769.3,2.65301249]
[1753119504855,4.863,3769.4,3769.3,2.65301249]
[1753119505054,4.863,3769.4,3769.0,2.65322065]
[1753119505055,4.863,3769.4,3769.2,2.65306795]
[1753119505277,14.5,3769.3,3769.2,2.65306795]
[1753119505592,14.5,3769.3,3769.1,0.4572]
[1753119505593,14.5,3769.3,3769.1,3.11033904]
[1753119505780,4.311,3769.2,3769.1,3.11033904]
[1753119505976,0.58316177,3769.4,3769.2,2.65308082]
[1753119506155,0.55,3769.4,3769.2,0.4572]
[1753119506355,4.34116265,3769.3,3768.9,1.2201]
[1753119506597,0.03316265,3769.3,3768.9,1.2201]
[1753119506886,0.03316265,3769.3,3768.9,3.11047579]
[1753119507403,4.306,3769.2,3769.0,2.6532145]
[1753119507589,15.05,3769.4,3769.2,2.6530131]
[1753119507794,4.305,3769.3,3768.8,2.78535075]
[1753119508094,0.03316265,3769.3,3769.0,0.4572]
[1753119508268,4.304,3769.2,3769.1,0.4572]
[1753119508653,14.5,3769.4,3769.1,0.4572]
[1753119508878,4.33616265,3769.3,3769.2,0.5892]
[1753119509714,4.33616265,3769.3,3769.2,0.132]
[1753119510956,4.299,3769.3,3769.2,0.5892]
[1753119511168,4.296,3769.3,3769.2,3.24228288]
[1753119511777,14.5,3769.4,3769.3,2.65301249]
[1753119511976,18.794,3769.4,3769.3,3.11021249]
[1753119512165,18.794,3769.4,3769.3,3.24221249]
[1753119512565,18.794,3769.4,3769.3,0.5892]
[1753119512883,18.794,3769.4,3769.3,3.24221249]
[1753119513078,22.60976699,3769.4,3768.7,0.4572]
[1753119513281,0.03316265,3769.3,3769.0,0.132]
[1753119513818,14.5,3769.4,3769.2,2.65308288]
[1753119514048,4.32416265,3769.3,3769.2,2.78508288]
[1753119514315,4.32416265,3769.3,3769.2,0.132]
[1753119515107,4.32416265,3769.3,3768.8,3.11053836]
[1753119515276,4.32416265,3769.3,3769.0,0.132]
[1753119515462,14.5,3769.4,3769.1,0.4572]
[1753119515662,4.32116265,3769.3,3769.2,0.4572]
[1753119515862,4.32116265,3769.3,3769.2,2.78502387]
[1753119516098,4.32116265,3769.3,3769.2,3.24222387]
[1753119516268,14.5,3769.4,3769.3,2.65301249]
[1753119516464,0.132,3769.9,3769.4,2.65294211]
[1753119516704,0.03315825,3769.8,3769.6,2.65277771]
[1753119516866,0.03315561,3770.1,3769.7,3.10992785]
[1753119517065,0.03515298,3770.4,3770.0,2.65246825]
[1753119517292,4.287,3770.3,3770.1,2.65244953]
[1753119517497,14.53315473,3770.2,3770.0,2.78450725]
[1753119517696,14.53315473,3770.2,3770.0,0.132]
[1753119517697,4.287,3770.1,3770.0,0.132]
[1753119518564,16.00957733,3770.2,3770.0,0.132]
[1753119518565,1.50957733,3770.2,3770.0,0.132]
[1753119518765,0.03315561,3770.1,3770.0,0.5892]
[1753119518993,18.784,3770.1,3770.0,3.24169261]
[1753119519173,14.5,3770.1,3770.0,3.24169261]
[1753119519571,18.782,3770.1,3770.0,3.24169261]
[1753119520467,14.5,3770.1,3770.0,3.24169261]
[1753119520773,18.78,3770.1,3770.0,3.24169261]
[1753119521180,14.5,3770.1,3770.0,3.24169261]
[1753119521402,18.778,3770.1,3770.0,4.60852207]
[1753119521705,14.5,3770.1,3770.0,4.60852207]
[1753119521892,18.777,3770.1,3770.0,4.60852207]
[1753119522078,14.5,3770.1,3770.0,4.60852207]
[1753119522283,4.277,3770.1,3770.0,4.60852207]
[1753119522796,0.002,3770.4,3770.3,2.65230883]
[1753119522963,4.278,3770.4,3770.2,2.65233453]
[1753119523161,4.278,3770.4,3770.3,3.24150883]
[1753119523162,0.002,3770.4,3770.3,3.24150883]
[1753119523402,4.276,3770.4,3770.3,3.24150883]
[1753119523701,18.776,3770.4,3770.3,3.24150883]
[1753119524002,18.776,3770.4,3770.3,0.5892]
[1753119524206,18.776,3770.4,3770.3,3.24150883]
[1753119524406,14.502,3770.4,3770.3,3.24150883]
[1753119524572,18.772,3770.4,3770.3,3.24150883]
[1753119525206,0.55,3770.1,3769.2,1.2203]
[1753119525411,4.30215649,3770.0,3769.7,0.132]
[1753119525766,0.03315649,3770.0,3769.7,0.132]
[1753119526001,3.16515386,3770.3,3769.9,2.65259025]
[1753119526201,3.0,3770.1,3769.9,0.132]
[1753119526408,4.30515649,3770.0,3769.9,0.132]
[1753119526917,4.271,3770.0,3769.9,0.577]
[1753119527067,4.271,3770.0,3769.3,0.7631]
[1753119527429,0.03315737,3769.9,3769.4,0.445]
[1753119527733,4.27,3769.8,3769.4,0.445]
[1753119528022,4.27,3769.8,3769.5,0.445]
[1753119529065,4.27,3769.8,3769.3,0.7631]
[1753119529265,2.6859006,3769.7,3769.1,0.445]
[1753119529470,4.271,3769.6,3769.1,3.09813612]
[1753119529711,4.271,3769.6,3769.2,3.09806657]
[1753119530005,4.271,3769.6,3769.3,0.445]
[1753119530310,6.95696264,3769.6,3769.3,0.445]
[1753119530606,6.95696264,3769.6,3769.0,0.76986837]
[1753119530607,6.92380263,3769.6,3769.0,0.76986837]
[1753119530767,2.65305887,3769.3,3768.6,0.8062]
[1753119531109,6.9512624,3769.2,3768.6,0.8062]
[1753119531305,0.03316441,3769.1,3768.6,0.8062]
[1753119531504,4.265,3769.0,3768.6,3.45967924]
[1753119531736,4.265,3769.0,3768.6,1.2512]
[1753119531944,4.263,3768.9,3768.8,2.65331382]
[1753119532236,4.263,3768.9,3768.8,3.09831382]
[1753119532440,4.263,3768.9,3768.8,0.445]
[1753119532634,4.262,3768.9,3768.6,0.8062]
[1753119532802,4.262,3768.9,3768.6,1.2512]
[1753119533002,4.262,3768.9,3768.6,0.001]
[1753119533003,4.60727861,3768.9,3768.6,0.001]
[1753119533203,4.29516617,3768.9,3768.6,0.001]
[1753119533813,0.03316529,3769.0,3768.7,0.445]
[1753119534045,4.26,3768.9,3768.8,0.445]
[1753119534239,4.26,3768.9,3768.6,0.001]
[1753119535923,0.03316705,3768.8,3768.6,0.001]
[1753119536641,14.5,3768.7,3768.6,0.001]
[1753119537154,4.26,3768.9,3768.6,0.133]
[1753119537455,0.03316705,3768.8,3768.6,0.133]
[1753119537956,14.5,3768.7,3768.6,0.133]
[1753119538256,18.754,3768.7,3768.6,3.23150528]
[1753119538626,18.752,3768.7,3768.6,3.23150528]
[1753119539024,18.752,3768.7,3768.6,0.578]
[1753119539541,18.752,3768.7,3768.6,0.133]
[1753119540255,26.2041828,3768.7,3768.6,0.001]
[1753119540417,37.2404542,3768.7,3768.6,0.001]
[1753119540746,6.95597569,3768.5,3768.4,1e-08]
[1753119540947,6.95597569,3768.5,3767.8,0.001]
[1753119540948,6.95639824,3767.9,3767.8,0.001]
[1753119541155,21.99016964,3767.9,3767.8,0.001]
[1753119541351,36.49016964,3767.9,3767.8,0.001]
[1753119541520,36.49016964,3767.9,3766.1,0.445]
[1753119541521,2.65435048,3767.4,3766.5,0.132]
[1753119541848,2.65435048,3767.4,3765.7,2.65554821]
[1753119541849,22.03810126,3767.4,3766.2,0.132]
[1753119542012,24.88495581,3767.4,3766.2,0.132]
[1753119542207,39.38495581,3767.4,3766.2,0.132]
[1753119542413,24.48311306,3767.4,3766.2,0.132]
[1753119542642,28.60018441,3767.4,3766.4,2.65505192]
[1753119542944,28.60018441,3767.4,3766.5,2.65497384]
[1753119543246,25.85315048,3767.4,3766.7,0.132]
[1753119543450,26.10565048,3767.4,3766.3,0.7596]
[1753119543617,26.10565048,3767.4,3766.5,0.132]
[1753119543817,26.10565048,3767.4,3766.6,2.65486578]
[1753119544014,18.9488,3767.4,3766.6,2.65490709]
[1753119544353,23.1988,3767.4,3766.7,2.7868207]
[1753119544516,23.1988,3767.4,3766.7,0.132]
[1753119544850,18.9488,3767.4,3766.7,0.132]
[1753119545010,23.1998,3767.4,3766.9,2.6546847]
[1753119545214,23.1998,3767.4,3767.0,2.65463156]
[1753119545411,18.9488,3767.4,3766.8,0.445]
[1753119545614,22.301,3767.4,3766.9,2.65468572]
[1753119545842,18.751,3767.4,3767.3,2.65542093]
[1753119546038,18.751,3767.4,3767.3,3.10042093]
[1753119546261,14.5,3767.4,3767.3,3.88459798]
[1753119546419,18.751,3767.4,3767.3,3.88459798]
[1753119546635,0.8988,3768.2,3767.3,3.88459798]
[1753119546840,6.5955836,3768.1,3768.0,2.65392781]
[1753119547159,25.31241039,3768.1,3768.0,3.23092781]
[1753119547339,28.31241039,3768.1,3768.0,3.23092781]
[1753119547547,28.31241039,3768.1,3768.0,2.78592781]
[1753119548038,24.06241039,3768.1,3768.0,2.78592781]
[1753119548370,0.132,3768.7,3768.5,2.65352522]
[1753119548564,4.251,3768.6,3768.1,0.7579]
[1753119548869,18.751,3768.5,3768.4,2.6536461]
[1753119549368,0.132,3769.0,3768.7,2.65342174]
[1753119549548,4.251,3768.9,3768.5,2.65357569]
[1753119549734,0.03316529,3769.0,3768.9,2.65329406]
[1753119549934,18.751,3769.0,3768.8,2.65330953]
[1753119550169,18.751,3769.0,3768.9,2.65329406]
[1753119550380,17.5,3769.0,3768.7,2.78542698]
[1753119550540,3.0,3768.9,3768.7,0.132]
[1753119550740,4.251,3768.8,3768.7,3.23043487]
[1753119551038,4.28416705,3768.8,3768.7,3.23043487]
[1753119551236,4.28416705,3768.8,3768.7,0.132]
[1753119551435,0.03316705,3768.8,3768.7,2.78543487]
[1753119551657,10.7837714,3770.5,3768.9,0.7579]
[1753119551854,1.49289836,3770.4,3768.9,0.7579]
[1753119552084,2.6527875,3769.7,3768.9,0.7579]
[1753119552285,4.28338805,3769.6,3768.9,0.7579]
[1753119552487,4.28338805,3769.6,3768.9,3.41118379]
[1753119552684,4.257,3769.5,3769.0,2.67975104]
[1753119552861,0.02638805,3769.4,3768.9,0.7579]
[1753119553863,4.257,3769.3,3768.9,0.7579]
[1753119554082,0.02638805,3769.2,3768.9,0.7579]
[1753119554283,4.256,3769.1,3768.9,0.7579]
[1753119554596,0.02638805,3769.0,3768.9,0.7579]
[1753119554803,4.256,3769.1,3768.9,0.7579]
[1753119555411,4.256,3769.1,3768.9,1.2029]
[1753119555895,4.28238805,3769.1,3768.9,1.2029]
[1753119556481,4.28238805,3769.1,3768.0,2.65391512]
[1753119556482,2.65322407,3769.0,3768.5,1.2231]
[1753119556697,0.02638805,3768.9,3768.1,0.7579]
[1753119556898,4.25,3768.8,3768.1,0.7579]
[1753119557100,0.02638805,3768.7,3768.1,0.7579]
[1753119557302,0.55,3769.3,3768.3,2.6536869]
[1753119557303,4.25,3768.6,3768.3,2.6536869]
[1753119557502,4.25,3768.6,3768.4,1.12091772]
[1753119557678,2.6529513,3769.4,3768.1,0.78443857]
[1753119557883,4.27638805,3769.3,3768.6,2.65345074]
[1753119558401,0.55,3769.8,3768.7,3.1186267]
[1753119558402,2.65289385,3769.5,3768.7,3.1186267]
[1753119558581,4.25,3769.4,3768.8,0.7772]
[1753119558775,4.25,3769.3,3768.9,3.11847635]
[1753119558981,4.25,3769.2,3769.0,0.4652]
[1753119559198,2.65281077,3769.6,3769.0,0.4652]
[1753119559399,4.25,3769.5,3769.0,0.4652]
[1753119559614,4.25,3769.5,3768.9,0.68144379]
[1753119559817,4.25,3769.5,3769.1,0.4652]
[1753119560013,4.25,3769.5,3769.2,0.4652]
[1753119560311,4.25,3769.5,3768.9,0.68144379]
[1753119560312,4.25,3769.4,3768.9,0.68144379]
[1753119560516,4.25,3769.3,3768.9,0.02653294]
[1753119560717,4.25,3769.3,3768.9,0.49173294]
[1753119561211,4.25,3769.3,3768.8,0.7772]
[1753119561414,2.65320689,3769.1,3768.4,0.4652]
[1753119561582,4.25,3769.0,3768.9,0.132]